[Event "Late Titled Tuesday Blitz February 8 2022"]
[White "Alfaro, William"]
[Black "Hasangatin, Ramil"]
[WhiteFideId "6100457"]
[BlackFideId "4122160"]
[WhiteElo "2066"]
[BlackElo "2375"]
[Result "0-1"]
[Round "01"]
[TimeControl "180+1"]
[Date "2022.02.09"]
[WhiteClock "0:00:02"]
[BlackClock "0:00:59"]

1. c4 {[%clk 0:02:52]}  e5 {[%clk 0:02:59]} 2. Nc3 {[%clk 0:02:51]}  Bb4 {[%clk 0:02:57]} 3. g3 {[%clk 0:02:48]}  Bxc3 {[%clk 0:02:57]} 4. dxc3 {[%clk 0:02:46]}  d6 {[%clk 0:02:55]} 5. Bg2 {[%clk 0:02:46]}  Nc6 {[%clk 0:02:55]} 6. Nf3 {[%clk 0:02:46]}  Be6 {[%clk 0:02:55]} 7. b3 {[%clk 0:02:45]}  h6 {[%clk 0:02:55]} 8. O-O {[%clk 0:02:41]}  Qd7 {[%clk 0:02:56]} 9. e4 {[%clk 0:02:39]}  Bh3 {[%clk 0:02:54]} 10. Ne1 {[%clk 0:02:33]}  Bxg2 {[%clk 0:02:52]} 11. Kxg2 {[%clk 0:02:33]}  Nge7 {[%clk 0:02:52]} 12. Nc2 {[%clk 0:02:33]}  f5 {[%clk 0:02:51]} 13. exf5 {[%clk 0:02:25]}  Qxf5 {[%clk 0:02:50]} 14. Ne3 {[%clk 0:02:24]}  Qg6 {[%clk 0:02:43]} 15. Nd5 {[%clk 0:02:20]}  O-O-O {[%clk 0:02:40]} 16. Be3 {[%clk 0:02:12]}  Kb8 {[%clk 0:02:39]} 17. Qb1 {[%clk 0:01:14]}  Nf5 {[%clk 0:02:31]} 18. Qe4 {[%clk 0:01:11]}  Rhf8 {[%clk 0:02:23]} 19. f3 {[%clk 0:00:53]}  Rf7 {[%clk 0:02:17]} 20. b4 {[%clk 0:00:45]}  Rdf8 {[%clk 0:02:12]} 21. Bg1 {[%clk 0:00:38]}  Nfe7 {[%clk 0:02:05]} 22. Qxg6 {[%clk 0:00:35]}  Nxg6 {[%clk 0:02:04]} 23. Rad1 {[%clk 0:00:33]}  Nge7 {[%clk 0:01:53]} 24. Nxe7 {[%clk 0:00:30]}  Nxe7 {[%clk 0:01:50]} 25. c5 {[%clk 0:00:26]}  d5 {[%clk 0:01:50]} 26. Rde1 {[%clk 0:00:22]}  Ng6 {[%clk 0:01:49]} 27. Be3 {[%clk 0:00:21]}  Kc8 {[%clk 0:01:47]} 28. c6 {[%clk 0:00:19]}  b6 {[%clk 0:01:40]} 29. b5 {[%clk 0:00:18]}  Re8 {[%clk 0:01:28]} 30. Rd1 {[%clk 0:00:18]}  Rd8 {[%clk 0:01:23]} 31. a4 {[%clk 0:00:15]}  Ne7 {[%clk 0:01:14]} 32. Rfe1 {[%clk 0:00:08]}  Nf5 {[%clk 0:01:14]} 33. Bf2 {[%clk 0:00:08]}  Re7 {[%clk 0:01:14]} 34. g4 {[%clk 0:00:07]}  Nd6 {[%clk 0:01:11]} 35. h4 {[%clk 0:00:06]}  Nc4 {[%clk 0:01:09]} 36. h5 {[%clk 0:00:06]}  Ree8 {[%clk 0:01:06]} 37. Bh4 {[%clk 0:00:06]}  Rd6 {[%clk 0:01:07]} 38. Bg3 {[%clk 0:00:06]}  a6 {[%clk 0:01:01]} 39. Rd3 {[%clk 0:00:03]}  a5 {[%clk 0:00:59]} 40. Red1 {[%clk 0:00:03]}  Nb2 {[%clk 0:00:59]} 41. Rxd5 {[%clk 0:00:02]}  Nxd1 {[%clk 0:00:59]} 0-1


[Site "https://www.chess.com"]

[Event "Late Titled Tuesday Blitz February 8 2022"]
[White "Ambartsumova, Karina"]
[Black "Haussernot, Cecile"]
[WhiteFideId "4166299"]
[BlackFideId "601632"]
[WhiteElo "2262"]
[BlackElo "2288"]
[Result "1-0"]
[Round "01"]
[TimeControl "180+1"]
[Date "2022.02.09"]
[WhiteClock "0:00:04"]
[BlackClock "0:00:21"]

1. d4 {[%clk 0:02:59]}  d5 {[%clk 0:02:56]} 2. Nf3 {[%clk 0:02:58]}  Nf6 {[%clk 0:02:56]} 3. c4 {[%clk 0:02:58]}  c6 {[%clk 0:02:57]} 4. g3 {[%clk 0:02:58]}  dxc4 {[%clk 0:02:52]} 5. Bg2 {[%clk 0:02:57]}  e6 {[%clk 0:02:52]} 6. Ne5 {[%clk 0:02:54]}  Bb4+ {[%clk 0:02:47]} 7. Nc3 {[%clk 0:02:54]}  O-O {[%clk 0:02:42]} 8. O-O {[%clk 0:02:47]}  Nbd7 {[%clk 0:02:39]} 9. Nxc4 {[%clk 0:02:46]}  Qe7 {[%clk 0:02:35]} 10. a3 {[%clk 0:02:30]}  Bxc3 {[%clk 0:02:32]} 11. bxc3 {[%clk 0:02:31]}  Rd8 {[%clk 0:02:31]} 12. a4 {[%clk 0:02:27]}  Nb6 {[%clk 0:02:20]} 13. Ba3 {[%clk 0:02:21]}  Qc7 {[%clk 0:02:12]} 14. Ne5 {[%clk 0:02:21]}  Nfd5 {[%clk 0:02:04]} 15. Qb3 {[%clk 0:02:16]}  a5 {[%clk 0:01:54]} 16. e4 {[%clk 0:02:09]}  Nf6 {[%clk 0:01:51]} 17. Rab1 {[%clk 0:02:03]}  Nbd7 {[%clk 0:01:50]} 18. Nc4 {[%clk 0:02:02]}  c5 {[%clk 0:01:43]} 19. e5 {[%clk 0:01:55]}  Nd5 {[%clk 0:01:42]} 20. Nd6 {[%clk 0:01:53]}  Ne7 {[%clk 0:01:12]} 21. Nxc8 {[%clk 0:01:33]}  Raxc8 {[%clk 0:01:09]} 22. Qxb7 {[%clk 0:01:33]}  Nf5 {[%clk 0:00:57]} 23. Rfd1 {[%clk 0:00:50]}  cxd4 {[%clk 0:00:45]} 24. cxd4 {[%clk 0:00:50]}  Qc2 {[%clk 0:00:31]} 25. Qb3 {[%clk 0:00:37]}  Qe2 {[%clk 0:00:30]} 26. Qf3 {[%clk 0:00:30]}  Qa2 {[%clk 0:00:29]} 27. Qb3 {[%clk 0:00:22]}  Qe2 {[%clk 0:00:28]} 28. Bf3 {[%clk 0:00:21]}  Qa6 {[%clk 0:00:28]} 29. Bb7 {[%clk 0:00:21]}  Qe2 {[%clk 0:00:25]} 30. Bxc8 {[%clk 0:00:21]}  Rxc8 {[%clk 0:00:25]} 31. Qd3 {[%clk 0:00:20]}  Qg4 {[%clk 0:00:24]} 32. Rbc1 {[%clk 0:00:18]}  Rd8 {[%clk 0:00:24]} 33. Bb2 {[%clk 0:00:15]}  h5 {[%clk 0:00:24]} 34. Re1 {[%clk 0:00:14]}  h4 {[%clk 0:00:23]} 35. Qe4 {[%clk 0:00:14]}  Qg5 {[%clk 0:00:23]} 36. Qf4 {[%clk 0:00:13]}  Qg6 {[%clk 0:00:23]} 37. Rcd1 {[%clk 0:00:12]}  Nb6 {[%clk 0:00:23]} 38. Qf3 {[%clk 0:00:09]}  Nc4 {[%clk 0:00:23]} 39. Bc3 {[%clk 0:00:09]}  Rb8 {[%clk 0:00:22]} 40. d5 {[%clk 0:00:09]}  Rb3 {[%clk 0:00:22]} 41. d6 {[%clk 0:00:07]}  hxg3 {[%clk 0:00:21]} 42. hxg3 {[%clk 0:00:07]}  Nh4 {[%clk 0:00:21]} 43. Qd3 {[%clk 0:00:07]}  Qg4 {[%clk 0:00:21]} 44. d7 {[%clk 0:00:06]}  Nf3+ {[%clk 0:00:20]} 45. Kg2 {[%clk 0:00:06]}  Nh4+ {[%clk 0:00:21]} 46. Kf1 {[%clk 0:00:05]}  Qh3+ {[%clk 0:00:21]} 47. Ke2 {[%clk 0:00:06]}  Qg4+ {[%clk 0:00:21]} 48. f3 {[%clk 0:00:05]}  Qxg3 {[%clk 0:00:21]} 49. d8=Q# {[%clk 0:00:04]} 1-0


[Site "https://www.chess.com"]

[Event "Late Titled Tuesday Blitz February 8 2022"]
[White "Balaji, Aaravamudhan"]
[Black "Gaisinsky, Adam"]
[WhiteFideId "436224"]
[BlackFideId "2620561"]
[WhiteElo "2085"]
[BlackElo "1965"]
[Result "1-0"]
[Round "01"]
[TimeControl "180+1"]
[Date "2022.02.09"]
[WhiteClock "0:02:11"]
[BlackClock "0:00:19"]

1. Nf3 {[%clk 0:03:00]}  d5 {[%clk 0:02:59]} 2. g3 {[%clk 0:03:01]}  Nf6 {[%clk 0:02:59]} 3. Bg2 {[%clk 0:03:02]}  c5 {[%clk 0:02:58]} 4. O-O {[%clk 0:03:02]}  Nc6 {[%clk 0:02:58]} 5. d4 {[%clk 0:03:03]}  cxd4 {[%clk 0:02:57]} 6. Nxd4 {[%clk 0:03:04]}  e5 {[%clk 0:02:57]} 7. Nxc6 {[%clk 0:03:04]}  bxc6 {[%clk 0:02:58]} 8. c4 {[%clk 0:03:05]}  Bc5 {[%clk 0:02:53]} 9. Nc3 {[%clk 0:03:04]}  Be6 {[%clk 0:02:50]} 10. Qa4 {[%clk 0:03:04]}  Qd7 {[%clk 0:02:48]} 11. cxd5 {[%clk 0:03:04]}  cxd5 {[%clk 0:02:48]} 12. Qxd7+ {[%clk 0:03:05]}  Kxd7 {[%clk 0:02:49]} 13. Rd1 {[%clk 0:03:05]}  Bd4 {[%clk 0:02:00]} 14. Na4 {[%clk 0:02:59]}  Rac8 {[%clk 0:01:34]} 15. Bg5 {[%clk 0:02:31]}  Rc4 {[%clk 0:01:16]} 16. b3 {[%clk 0:02:27]}  Rxa4 {[%clk 0:00:56]} 17. bxa4 {[%clk 0:02:28]}  Bxa1 {[%clk 0:00:57]} 18. Rxa1 {[%clk 0:02:29]}  Rb8 {[%clk 0:00:48]} 19. Rd1 {[%clk 0:02:26]}  Kd6 {[%clk 0:00:48]} 20. f4 {[%clk 0:02:24]}  Rb2 {[%clk 0:00:43]} 21. e4 {[%clk 0:02:11]}  d4 {[%clk 0:00:35]} 22. fxe5+ {[%clk 0:02:11]}  Kc5 {[%clk 0:00:24]} 23. exf6 {[%clk 0:02:11]}  gxf6 {[%clk 0:00:23]} 24. Bxf6 {[%clk 0:02:12]}  Rb4 {[%clk 0:00:19]} 25. Be7+ {[%clk 0:02:11]} 1-0


[Site "https://www.chess.com"]

[Event "Late Titled Tuesday Blitz February 8 2022"]
[White "Balint, Vilmos"]
[Black "Domingo Nunez, Alejandro"]
[WhiteFideId "718050"]
[BlackFideId "22245561"]
[WhiteElo "2059"]
[BlackElo "2215"]
[Result "0-1"]
[Round "01"]
[TimeControl "180+1"]
[Date "2022.02.09"]
[WhiteClock "0:00:10"]
[BlackClock "0:00:25"]

1. e4 {[%clk 0:02:54]}  c6 {[%clk 0:02:57]} 2. d4 {[%clk 0:02:54]}  d5 {[%clk 0:02:56]} 3. e5 {[%clk 0:02:54]}  Bf5 {[%clk 0:02:56]} 4. Nf3 {[%clk 0:02:55]}  e6 {[%clk 0:02:56]} 5. Be2 {[%clk 0:02:55]}  c5 {[%clk 0:02:56]} 6. O-O {[%clk 0:02:56]}  Nc6 {[%clk 0:02:56]} 7. c4 {[%clk 0:02:53]}  dxc4 {[%clk 0:02:54]} 8. Be3 {[%clk 0:02:51]}  Nge7 {[%clk 0:02:47]} 9. Bxc4 {[%clk 0:01:44]}  cxd4 {[%clk 0:02:01]} 10. Nxd4 {[%clk 0:01:43]}  Nxe5 {[%clk 0:01:59]} 11. Bb5+ {[%clk 0:01:37]}  N5c6 {[%clk 0:01:59]} 12. Nxf5 {[%clk 0:01:28]}  Qxd1 {[%clk 0:01:55]} 13. Rxd1 {[%clk 0:01:23]}  Nxf5 {[%clk 0:01:55]} 14. Bf4 {[%clk 0:01:16]}  Be7 {[%clk 0:01:48]} 15. g4 {[%clk 0:01:12]}  Nh4 {[%clk 0:01:46]} 16. Bg3 {[%clk 0:01:02]}  O-O {[%clk 0:01:41]} 17. Rd7 {[%clk 0:00:52]}  Rfd8 {[%clk 0:01:33]} 18. Rxd8+ {[%clk 0:00:45]}  Rxd8 {[%clk 0:01:33]} 19. Nc3 {[%clk 0:00:45]}  Rd2 {[%clk 0:01:27]} 20. b3 {[%clk 0:00:35]}  Nd4 {[%clk 0:01:18]} 21. Ne4 {[%clk 0:00:24]}  Ndf3+ {[%clk 0:00:46]} 22. Kh1 {[%clk 0:00:23]}  Rd4 {[%clk 0:00:46]} 23. Nc3 {[%clk 0:00:18]}  Bf6 {[%clk 0:00:40]} 24. Rc1 {[%clk 0:00:18]}  h6 {[%clk 0:00:39]} 25. Ne2 {[%clk 0:00:18]}  Rd2 {[%clk 0:00:36]} 26. a4 {[%clk 0:00:17]}  a6 {[%clk 0:00:36]} 27. Bc4 {[%clk 0:00:18]}  Ng6 {[%clk 0:00:29]} 28. h3 {[%clk 0:00:17]}  Nge5 {[%clk 0:00:29]} 29. Nf4 {[%clk 0:00:14]}  Bg5 {[%clk 0:00:26]} 30. Rc3 {[%clk 0:00:13]}  Rd1+ {[%clk 0:00:24]} 31. Kg2 {[%clk 0:00:10]}  Rg1# {[%clk 0:00:25]} 0-1


[Site "https://www.chess.com"]

[Event "Late Titled Tuesday Blitz February 8 2022"]
[White "Barp, Alberto"]
[Black "Gatterer, Florian"]
[WhiteFideId "872555"]
[BlackFideId "811688"]
[WhiteElo "2229"]
[BlackElo "2218"]
[Result "1-0"]
[Round "01"]
[TimeControl "180+1"]
[Date "2022.02.09"]
[WhiteClock "0:00:12"]
[BlackClock "0:00:28"]

1. d4 {[%clk 0:02:56]}  d5 {[%clk 0:02:59]} 2. c4 {[%clk 0:02:51]}  c6 {[%clk 0:02:59]} 3. Nf3 {[%clk 0:02:51]}  Nf6 {[%clk 0:02:59]} 4. e3 {[%clk 0:02:51]}  a6 {[%clk 0:02:58]} 5. Bd3 {[%clk 0:02:49]}  g6 {[%clk 0:02:52]} 6. O-O {[%clk 0:02:48]}  Bg7 {[%clk 0:02:51]} 7. Nc3 {[%clk 0:02:47]}  dxc4 {[%clk 0:02:51]} 8. Bxc4 {[%clk 0:02:46]}  b5 {[%clk 0:02:51]} 9. Be2 {[%clk 0:02:20]}  O-O {[%clk 0:02:47]} 10. Ne5 {[%clk 0:02:20]}  Bb7 {[%clk 0:02:45]} 11. Bf3 {[%clk 0:02:20]}  Nfd7 {[%clk 0:02:45]} 12. Nd3 {[%clk 0:02:17]}  Qc8 {[%clk 0:02:34]} 13. Bd2 {[%clk 0:02:05]}  c5 {[%clk 0:02:34]} 14. Bxb7 {[%clk 0:01:39]}  Qxb7 {[%clk 0:02:35]} 15. dxc5 {[%clk 0:01:39]}  b4 {[%clk 0:02:20]} 16. Na4 {[%clk 0:01:23]}  a5 {[%clk 0:02:20]} 17. Rc1 {[%clk 0:01:15]}  Nc6 {[%clk 0:02:18]} 18. b3 {[%clk 0:00:59]}  Rfd8 {[%clk 0:02:16]} 19. Qe2 {[%clk 0:00:45]}  Qb5 {[%clk 0:01:59]} 20. Rfe1 {[%clk 0:00:37]}  Nf6 {[%clk 0:01:53]} 21. Ndb2 {[%clk 0:00:27]}  Qxe2 {[%clk 0:01:49]} 22. Rxe2 {[%clk 0:00:27]}  Ne4 {[%clk 0:01:49]} 23. Be1 {[%clk 0:00:27]}  Rab8 {[%clk 0:01:12]} 24. Nc4 {[%clk 0:00:27]}  Nc3 {[%clk 0:01:10]} 25. Nxc3 {[%clk 0:00:18]}  bxc3 {[%clk 0:01:11]} 26. g3 {[%clk 0:00:14]}  a4 {[%clk 0:01:11]} 27. bxa4 {[%clk 0:00:11]}  Nb4 {[%clk 0:01:05]} 28. Bxc3 {[%clk 0:00:11]}  Nd3 {[%clk 0:01:05]} 29. Rcc2 {[%clk 0:00:10]}  Rb1+ {[%clk 0:01:00]} 30. Kg2 {[%clk 0:00:09]}  Bxc3 {[%clk 0:00:58]} 31. Rxc3 {[%clk 0:00:10]}  Ne1+ {[%clk 0:00:58]} 32. Kh3 {[%clk 0:00:10]}  Nf3 {[%clk 0:00:59]} 33. Rec2 {[%clk 0:00:10]}  h5 {[%clk 0:00:55]} 34. Rc1 {[%clk 0:00:08]}  Rb4 {[%clk 0:00:50]} 35. Kg2 {[%clk 0:00:08]}  Ng5 {[%clk 0:00:46]} 36. a5 {[%clk 0:00:08]}  Ne4 {[%clk 0:00:46]} 37. R3c2 {[%clk 0:00:07]}  h4 {[%clk 0:00:46]} 38. gxh4 {[%clk 0:00:06]}  g5 {[%clk 0:00:44]} 39. hxg5 {[%clk 0:00:06]}  Rd5 {[%clk 0:00:43]} 40. h4 {[%clk 0:00:05]}  f6 {[%clk 0:00:43]} 41. gxf6 {[%clk 0:00:04]}  Nxf6 {[%clk 0:00:41]} 42. Rb2 {[%clk 0:00:05]}  Ra4 {[%clk 0:00:40]} 43. a6 {[%clk 0:00:04]}  Rxa6 {[%clk 0:00:39]} 44. Nb6 {[%clk 0:00:04]}  Rd8 {[%clk 0:00:34]} 45. c6 {[%clk 0:00:05]}  Nd5 {[%clk 0:00:34]} 46. Nxd5 {[%clk 0:00:05]}  Rxd5 {[%clk 0:00:34]} 47. c7 {[%clk 0:00:06]}  Ra8 {[%clk 0:00:33]} 48. c8=Q+ {[%clk 0:00:06]}  Rxc8 {[%clk 0:00:34]} 49. Rxc8+ {[%clk 0:00:06]}  Kf7 {[%clk 0:00:35]} 50. Kf3 {[%clk 0:00:07]}  Rd6 {[%clk 0:00:34]} 51. Ke2 {[%clk 0:00:07]}  Rd5 {[%clk 0:00:34]} 52. Rcc2 {[%clk 0:00:08]}  Ra5 {[%clk 0:00:33]} 53. Rb4 {[%clk 0:00:07]}  Kf6 {[%clk 0:00:34]} 54. Rcb2 {[%clk 0:00:08]}  Ra3 {[%clk 0:00:33]} 55. R4b3 {[%clk 0:00:08]}  Ra4 {[%clk 0:00:33]} 56. Rb4 {[%clk 0:00:08]}  Ra3 {[%clk 0:00:34]} 57. Kf3 {[%clk 0:00:09]}  e6 {[%clk 0:00:33]} 58. Rb5 {[%clk 0:00:09]}  Ra4 {[%clk 0:00:33]} 59. Rb6 {[%clk 0:00:09]}  Ra3 {[%clk 0:00:32]} 60. Rc6 {[%clk 0:00:09]}  Ra4 {[%clk 0:00:32]} 61. Rbb6 {[%clk 0:00:09]}  Kf5 {[%clk 0:00:32]} 62. Kg2 {[%clk 0:00:08]}  Rg4+ {[%clk 0:00:32]} 63. Kf1 {[%clk 0:00:08]}  Rxh4 {[%clk 0:00:32]} 64. Rxe6 {[%clk 0:00:07]}  Rh1+ {[%clk 0:00:32]} 65. Ke2 {[%clk 0:00:08]}  Rc1 {[%clk 0:00:33]} 66. Red6 {[%clk 0:00:08]}  Ke5 {[%clk 0:00:33]} 67. Rd2 {[%clk 0:00:08]}  Rc8 {[%clk 0:00:32]} 68. Rbd6 {[%clk 0:00:09]}  Ra8 {[%clk 0:00:32]} 69. R6d5+ {[%clk 0:00:10]}  Ke6 {[%clk 0:00:32]} 70. f4 {[%clk 0:00:10]}  Ra3 {[%clk 0:00:31]} 71. Rd6+ {[%clk 0:00:11]}  Kf5 {[%clk 0:00:31]} 72. Kf3 {[%clk 0:00:10]}  Ra5 {[%clk 0:00:27]} 73. R2d5+ {[%clk 0:00:10]}  Rxd5 {[%clk 0:00:27]} 74. Rxd5+ {[%clk 0:00:11]}  Ke6 {[%clk 0:00:28]} 75. Rd4 {[%clk 0:00:12]} 1-0


[Site "https://www.chess.com"]

[Event "Late Titled Tuesday Blitz February 8 2022"]
[White "Beerdsen, Thomas"]
[Black "Avazkhonov, Alikhon"]
[WhiteFideId "1030108"]
[BlackFideId "14208504"]
[WhiteElo "2585"]
[BlackElo "1739"]
[Result "1-0"]
[Round "01"]
[TimeControl "180+1"]
[Date "2022.02.09"]
[WhiteClock "0:01:44"]
[BlackClock "0:00:04"]

1. e4 {[%clk 0:02:52]}  c6 {[%clk 0:02:56]} 2. d4 {[%clk 0:02:51]}  d5 {[%clk 0:02:56]} 3. f3 {[%clk 0:02:52]}  g6 {[%clk 0:02:55]} 4. Nc3 {[%clk 0:02:52]}  Bg7 {[%clk 0:02:55]} 5. Be3 {[%clk 0:02:51]}  Qb6 {[%clk 0:02:52]} 6. a3 {[%clk 0:02:51]}  Nf6 {[%clk 0:02:40]} 7. e5 {[%clk 0:02:50]}  Nfd7 {[%clk 0:02:39]} 8. f4 {[%clk 0:02:49]}  O-O {[%clk 0:02:33]} 9. Nf3 {[%clk 0:02:48]}  e6 {[%clk 0:02:22]} 10. h4 {[%clk 0:02:46]}  a5 {[%clk 0:01:33]} 11. h5 {[%clk 0:02:45]}  a4 {[%clk 0:01:23]} 12. Bd3 {[%clk 0:02:41]}  c5 {[%clk 0:00:59]} 13. hxg6 {[%clk 0:02:32]}  hxg6 {[%clk 0:00:55]} 14. Qd2 {[%clk 0:01:56]}  c4 {[%clk 0:00:48]} 15. Be2 {[%clk 0:01:47]}  Nc6 {[%clk 0:00:29]} 16. f5 {[%clk 0:01:45]}  exf5 {[%clk 0:00:04]} 17. Bh6 {[%clk 0:01:44]} 1-0


[Site "https://www.chess.com"]

[Event "Late Titled Tuesday Blitz February 8 2022"]
[White "Brunner, Nicolas"]
[Black "Nepomniachtchi, Ian"]
[WhiteFideId "620246"]
[BlackFideId "4168119"]
[WhiteElo "2372"]
[BlackElo "2740"]
[Result "1/2-1/2"]
[Round "01"]
[TimeControl "180+1"]
[Date "2022.02.08"]
[WhiteClock "0:00:05"]
[BlackClock "0:00:25"]

1. d4 {[%clk 0:03:00]}  Nf6 {[%clk 0:02:59]} 2. c4 {[%clk 0:03:00]}  g6 {[%clk 0:02:59]} 3. Nf3 {[%clk 0:03:00]}  Bg7 {[%clk 0:02:59]} 4. Nc3 {[%clk 0:03:00]}  d5 {[%clk 0:03:00]} 5. Bg5 {[%clk 0:03:00]}  dxc4 {[%clk 0:03:00]} 6. e4 {[%clk 0:02:58]}  c5 {[%clk 0:03:00]} 7. d5 {[%clk 0:02:56]}  b5 {[%clk 0:03:00]} 8. d6 {[%clk 0:02:51]}  Bb7 {[%clk 0:03:00]} 9. dxe7 {[%clk 0:02:48]}  Qxe7 {[%clk 0:02:57]} 10. e5 {[%clk 0:02:48]}  Nbd7 {[%clk 0:02:42]} 11. Qe2 {[%clk 0:02:46]}  Bxf3 {[%clk 0:02:40]} 12. exf6 {[%clk 0:02:45]}  Bxe2 {[%clk 0:02:35]} 13. fxg7 {[%clk 0:02:44]}  Qe5 {[%clk 0:02:30]} 14. gxh8=Q+ {[%clk 0:02:42]}  Qxh8 {[%clk 0:02:31]} 15. Bxe2 {[%clk 0:02:41]}  b4 {[%clk 0:02:27]} 16. Nd5 {[%clk 0:02:27]}  Qxb2 {[%clk 0:02:26]} 17. Rd1 {[%clk 0:02:20]}  f6 {[%clk 0:01:59]} 18. Nc7+ {[%clk 0:02:17]}  Ke7 {[%clk 0:01:58]} 19. Nxa8 {[%clk 0:02:05]}  fxg5 {[%clk 0:01:57]} 20. O-O {[%clk 0:02:02]}  Ne5 {[%clk 0:01:52]} 21. Rfe1 {[%clk 0:01:57]}  Kf6 {[%clk 0:01:51]} 22. Nc7 {[%clk 0:01:48]}  c3 {[%clk 0:01:45]} 23. Nd5+ {[%clk 0:01:45]}  Kg7 {[%clk 0:01:44]} 24. Ne3 {[%clk 0:01:37]}  Qxa2 {[%clk 0:01:43]} 25. Rd5 {[%clk 0:01:35]}  c2 {[%clk 0:01:23]} 26. Rxe5 {[%clk 0:01:31]}  Qb2 {[%clk 0:01:23]} 27. Rxc5 {[%clk 0:01:28]}  b3 {[%clk 0:01:23]} 28. Rc7+ {[%clk 0:01:27]}  Kf8 {[%clk 0:01:16]} 29. Bd3 {[%clk 0:01:10]}  Qe5 {[%clk 0:01:06]} 30. Rc8+ {[%clk 0:01:09]}  Kg7 {[%clk 0:01:04]} 31. Nxc2 {[%clk 0:01:06]}  Qd6 {[%clk 0:01:00]} 32. Be4 {[%clk 0:00:51]}  Qd2 {[%clk 0:00:46]} 33. Kf1 {[%clk 0:00:43]}  bxc2 {[%clk 0:00:35]} 34. Rxc2 {[%clk 0:00:42]}  Qd4 {[%clk 0:00:34]} 35. f3 {[%clk 0:00:39]}  a5 {[%clk 0:00:33]} 36. Ke2 {[%clk 0:00:36]}  g4 {[%clk 0:00:31]} 37. Rd1 {[%clk 0:00:35]}  gxf3+ {[%clk 0:00:32]} 38. gxf3 {[%clk 0:00:32]}  Qe5 {[%clk 0:00:31]} 39. Kf1 {[%clk 0:00:28]}  Kh6 {[%clk 0:00:31]} 40. Rd5 {[%clk 0:00:27]}  Qa1+ {[%clk 0:00:31]} 41. Kg2 {[%clk 0:00:26]}  a4 {[%clk 0:00:31]} 42. Ra5 {[%clk 0:00:24]}  a3 {[%clk 0:00:31]} 43. Ra7 {[%clk 0:00:20]}  Qd4 {[%clk 0:00:20]} 44. Rxa3 {[%clk 0:00:18]}  Qe5 {[%clk 0:00:20]} 45. Rb3 {[%clk 0:00:17]}  Qg5+ {[%clk 0:00:21]} 46. Kf2 {[%clk 0:00:15]}  Qh4+ {[%clk 0:00:21]} 47. Kg2 {[%clk 0:00:14]}  Qg5+ {[%clk 0:00:22]} 48. Kh1 {[%clk 0:00:13]}  Qh4 {[%clk 0:00:21]} 49. Rbc3 {[%clk 0:00:12]}  Qe1+ {[%clk 0:00:22]} 50. Kg2 {[%clk 0:00:12]}  Qh4 {[%clk 0:00:22]} 51. Rc5 {[%clk 0:00:12]}  Qf4 {[%clk 0:00:22]} 52. h3 {[%clk 0:00:12]}  Qe3 {[%clk 0:00:22]} 53. Rc7 {[%clk 0:00:12]}  Qg5+ {[%clk 0:00:22]} 54. Kh1 {[%clk 0:00:11]}  Qg3 {[%clk 0:00:22]} 55. R7c5 {[%clk 0:00:09]}  Qe1+ {[%clk 0:00:22]} 56. Kg2 {[%clk 0:00:09]}  Qe3 {[%clk 0:00:23]} 57. R5c3 {[%clk 0:00:08]}  Qg5+ {[%clk 0:00:23]} 58. Kh2 {[%clk 0:00:09]}  Qf4+ {[%clk 0:00:24]} 59. Kg2 {[%clk 0:00:09]}  Qg5+ {[%clk 0:00:24]} 60. Kh2 {[%clk 0:00:08]}  Qf4+ {[%clk 0:00:25]} 61. Kh1 {[%clk 0:00:07]}  Qg3 {[%clk 0:00:25]} 62. Rc6 {[%clk 0:00:06]}  Qe1+ {[%clk 0:00:24]} 63. Kg2 {[%clk 0:00:06]}  Qe3 {[%clk 0:00:25]} 64. R6c3 {[%clk 0:00:05]}  Qg5+ {[%clk 0:00:25]} 1/2-1/2


[Site "https://www.chess.com"]

[Event "Late Titled Tuesday Blitz February 8 2022"]
[White "Buscar, Michael"]
[Black "Rorrer, Grayson"]
[WhiteFideId "2603616"]
[BlackFideId "30944996"]
[WhiteElo "2010"]
[BlackElo "2122"]
[Result "0-1"]
[Round "01"]
[TimeControl "180+1"]
[Date "2022.02.09"]
[WhiteClock "0:00:02"]
[BlackClock "0:00:15"]

1. c4 {[%clk 0:03:00]}  e5 {[%clk 0:02:59]} 2. Nf3 {[%clk 0:02:55]}  e4 {[%clk 0:02:55]} 3. Nd4 {[%clk 0:02:55]}  Nc6 {[%clk 0:02:54]} 4. Nc2 {[%clk 0:02:52]}  f5 {[%clk 0:02:54]} 5. g3 {[%clk 0:02:52]}  Nf6 {[%clk 0:02:54]} 6. Bg2 {[%clk 0:02:52]}  Be7 {[%clk 0:02:52]} 7. Nc3 {[%clk 0:02:50]}  O-O {[%clk 0:02:52]} 8. d3 {[%clk 0:02:51]}  exd3 {[%clk 0:02:48]} 9. Qxd3 {[%clk 0:02:49]}  Nb4 {[%clk 0:02:30]} 10. Nxb4 {[%clk 0:02:41]}  Bxb4 {[%clk 0:02:31]} 11. O-O {[%clk 0:02:38]}  Bxc3 {[%clk 0:02:20]} 12. Qxc3 {[%clk 0:02:33]}  Qe7 {[%clk 0:02:20]} 13. Qc2 {[%clk 0:02:28]}  d6 {[%clk 0:02:18]} 14. b3 {[%clk 0:02:23]}  Ne4 {[%clk 0:02:13]} 15. Bb2 {[%clk 0:02:22]}  Bd7 {[%clk 0:02:12]} 16. Rad1 {[%clk 0:02:06]}  a5 {[%clk 0:02:04]} 17. a3 {[%clk 0:01:56]}  Bc6 {[%clk 0:02:03]} 18. Rfe1 {[%clk 0:01:39]}  f4 {[%clk 0:01:19]} 19. f3 {[%clk 0:01:17]}  Nc5 {[%clk 0:01:18]} 20. gxf4 {[%clk 0:01:01]}  Qe3+ {[%clk 0:01:15]} 21. Kh1 {[%clk 0:00:58]}  Qxb3 {[%clk 0:01:01]} 22. Qxb3 {[%clk 0:00:58]}  Nxb3 {[%clk 0:01:02]} 23. e3 {[%clk 0:00:57]}  Nc5 {[%clk 0:01:01]} 24. Rg1 {[%clk 0:00:46]}  Rae8 {[%clk 0:01:00]} 25. e4 {[%clk 0:00:40]}  Rxf4 {[%clk 0:00:55]} 26. Bh3 {[%clk 0:00:41]}  g6 {[%clk 0:00:55]} 27. Rg3 {[%clk 0:00:35]}  Ref8 {[%clk 0:00:43]} 28. Kg2 {[%clk 0:00:32]}  Bxe4 {[%clk 0:00:35]} 29. Rg1 {[%clk 0:00:17]}  Bxf3+ {[%clk 0:00:26]} 30. Kf2 {[%clk 0:00:17]}  Ne4+ {[%clk 0:00:25]} 31. Ke3 {[%clk 0:00:16]}  Nxg3 {[%clk 0:00:20]} 32. Be6+ {[%clk 0:00:16]}  R4f7 {[%clk 0:00:18]} 33. Bxf7+ {[%clk 0:00:09]}  Rxf7 {[%clk 0:00:17]} 34. Rxg3 {[%clk 0:00:09]}  Bc6 {[%clk 0:00:16]} 35. Rg1 {[%clk 0:00:08]}  Rf3+ {[%clk 0:00:16]} 36. Ke2 {[%clk 0:00:07]}  Rh3 {[%clk 0:00:15]} 37. Bd4 {[%clk 0:00:03]}  Rxh2+ {[%clk 0:00:15]} 38. Ke3 {[%clk 0:00:03]}  Rh3+ {[%clk 0:00:15]} 39. Kf4 {[%clk 0:00:03]}  Rxa3 {[%clk 0:00:15]} 40. Re1 {[%clk 0:00:02]}  Kf7 {[%clk 0:00:15]} 0-1


[Site "https://www.chess.com"]